bitfinex/quotes_BTCUSD_20241208
["timestamp","ask_amount","ask_price","bid_price","bid_amount"]
[1733699273713,0.35901363,100330.0,100310.0,0.003]
[1733699273919,0.36400006,100330.0,100310.0,0.004]
[1733699274122,0.179427,100320.0,100310.0,0.003]
[1733699274341,0.35901363,100330.0,100310.0,0.003]
[1733699274544,0.35901363,100330.0,100310.0,0.005]
[1733699274762,0.179427,100320.0,100300.0,0.27592951]
[1733699274970,0.35901363,100330.0,100310.0,0.002]
[1733699275414,0.179427,100320.0,100310.0,0.002]
[1733699276214,0.179427,100320.0,100310.0,0.001]
[1733699276419,0.18441359,100320.0,100310.0,0.001]
[1733699276786,0.18442059,100320.0,100300.0,0.27892951]
[1733699276986,0.47839818,100320.0,100310.0,0.005]
[1733699277213,0.308871,100320.0,100310.0,0.005]
[1733699277451,0.35986843,100330.0,100310.0,0.0886]
[1733699277659,0.00498655,100320.0,100310.0,0.08459683]
[1733699277878,0.31485498,100330.0,100310.0,0.08459683]
[1733699278287,0.13543698,100330.0,100310.0,0.18162634]
[1733699278517,0.0008628,100330.0,100310.0,0.36106034]
[1733699278755,0.0008628,100330.0,100320.0,0.64589182]
[1733699278977,0.0008628,100330.0,100320.0,0.53035451]
[1733699279199,0.0008628,100330.0,100320.0,0.7948951]
[1733699279409,0.179354,100360.0,100340.0,0.17939]
[1733699279632,0.51072321,100370.0,100340.0,0.40731583]
[1733699279896,0.179355,100360.0,100340.0,0.40731583]
[1733699280095,0.179355,100360.0,100340.0,0.22792583]
[1733699280324,0.47325759,100360.0,100340.0,0.22792583]
[1733699280534,0.65262359,100360.0,100340.0,0.22692951]
[1733699280747,0.47325759,100360.0,100340.0,0.22792951]
[1733699281179,0.47325759,100360.0,100340.0,0.22692951]
[1733699281400,0.65262359,100360.0,100340.0,0.22692951]
[1733699283285,0.18248749,100350.0,100340.0,0.22692951]
[1733699283465,0.47325759,100360.0,100340.0,0.22692951]
[1733699283715,0.00311549,100350.0,100340.0,0.22692951]
[1733699283898,0.179355,100360.0,100340.0,0.22692951]
[1733699284116,0.00311549,100350.0,100340.0,0.22692951]
[1733699284344,0.00087828,100350.0,100340.0,0.22692951]
[1733699284567,0.11541887,100350.0,100340.0,0.17942951]
[1733699284796,0.18025028,100350.0,100340.0,0.17942951]
[1733699287021,0.18025028,100350.0,100340.0,0.18042951]
[1733699287458,0.179372,100350.0,100340.0,0.18042951]
[1733699288132,0.179372,100350.0,100340.0,0.002]
[1733699288565,0.78192559,100360.0,100340.0,0.002]
[1733699288773,0.18747304,100350.0,100340.0,0.002]
[1733699288996,0.179372,100350.0,100340.0,0.002]
[1733699289636,0.179372,100350.0,100340.0,0.001]
[1733699290059,0.78192559,100360.0,100340.0,0.001]
[1733699290310,0.179372,100350.0,100340.0,0.0027248]
[1733699290514,0.18248773,100350.0,100340.0,0.0027248]
[1733699290722,0.60255759,100360.0,100340.0,0.0037248]
[1733699290927,0.18747266,100350.0,100340.0,0.0037248]
[1733699291141,0.13747266,100350.0,100340.0,0.0037248]
[1733699292485,0.4898474,100370.0,100340.0,0.23375081]
[1733699292702,0.3595534,100370.0,100350.0,0.10002951]
[1733699292951,0.47410599,100370.0,100350.0,0.10002951]
[1733699293164,0.179354,100360.0,100350.0,0.10002951]
[1733699293592,0.29389459,100360.0,100350.0,0.10002951]
[1733699293813,0.29389459,100360.0,100350.0,0.10102951]
[1733699294021,0.29389459,100360.0,100350.0,0.10202951]
[1733699294236,0.179354,100360.0,100350.0,0.10102951]
[1733699294461,0.179354,100360.0,100350.0,0.10002951]
[1733699294673,0.179354,100360.0,100350.0,0.10302951]
[1733699295581,0.179354,100360.0,100350.0,0.10802951]
[1733699298794,0.178932,100360.0,100350.0,0.10802951]
[1733699301909,0.178932,100360.0,100350.0,0.10975431]
[1733699303228,0.70305699,100370.0,100350.0,0.10975431]
[1733699303434,0.18745386,100360.0,100350.0,0.10975431]
[1733699303649,0.179354,100360.0,100350.0,0.10975431]
[1733699304051,0.179354,100360.0,100350.0,0.10675431]
[1733699305546,0.47956742,100360.0,100350.0,0.0067248]
[1733699305952,0.47957642,100360.0,100350.0,0.001]
[1733699306175,0.65894442,100360.0,100350.0,0.001]
[1733699306380,0.65894442,100360.0,100340.0,0.08241664]
[1733699306589,0.26257987,100350.0,100340.0,0.08241664]
[1733699306819,0.07510671,100350.0,100340.0,0.08241664]
[1733699307257,0.29387721,100350.0,100340.0,0.08241664]
[1733699307487,0.29387721,100350.0,100340.0,0.00031664]
[1733699307713,0.29387721,100350.0,100340.0,0.00331664]
[1733699307926,0.11450521,100350.0,100340.0,0.00331664]
[1733699308165,0.29387721,100350.0,100340.0,0.00331664]
[1733699308606,0.63608242,100350.0,100340.0,0.01131664]
[1733699309557,0.63608242,100350.0,100340.0,0.00831664]
[1733699309745,0.78351193,100350.0,100340.0,0.00831664]
[1733699310172,0.78351193,100350.0,100340.0,0.00031664]
[1733699310419,0.78351193,100350.0,100340.0,0.00931664]
[1733699310649,0.60413993,100350.0,100340.0,0.00931664]
[1733699310857,0.78351193,100350.0,100340.0,0.00431664]
[1733699311315,0.73351193,100350.0,100340.0,0.00731664]
[1733699311759,0.70581193,100350.0,100340.0,0.00731664]
[1733699312900,1.25341193,100350.0,100340.0,0.00731664]
[1733699313761,0.99147721,100350.0,100340.0,0.00731664]
[1733699313975,1.05598242,100350.0,100340.0,0.00731664]
[1733699314238,1.15601193,100350.0,100340.0,0.00731664]
[1733699314455,1.15687453,100350.0,100340.0,0.00731664]
[1733699314594,1.05687453,100350.0,100340.0,0.00731664]
[1733699314802,1.13397453,100350.0,100340.0,0.00731664]
[1733699315630,1.15909819,100350.0,100340.0,0.00731664]
[1733699315892,0.61149819,100350.0,100340.0,0.00731664]
[1733699316063,0.63180443,100350.0,100340.0,0.00731664]
[1733699316542,1.29357183,100350.0,100340.0,0.00731664]
[1733699316765,1.54690391,100350.0,100340.0,6.4e-07]
[1733699316968,2.06794996,100350.0,100340.0,6.4e-07]
[1733699317211,0.1241,100330.0,100320.0,0.00017163]
[1733699317377,0.51804172,100330.0,100320.0,0.00017163]
[1733699317579,0.46804172,100330.0,100320.0,0.00017163]
[1733699318952,0.61804172,100330.0,100320.0,0.00017163]
[1733699319376,1.28834697,100330.0,100320.0,6.3e-07]
[1733699319605,1.47187926,100330.0,100320.0,6.3e-07]
[1733699319814,1.42685553,100330.0,100320.0,6.3e-07]
[1733699320025,1.42685553,100330.0,100300.0,0.0017256]
[1733699320026,1.60550445,100330.0,100300.0,0.0017256]
[1733699320226,0.329443,100310.0,100300.0,0.0017256]
[1733699320428,0.44394821,100310.0,100300.0,0.0017256]
[1733699322229,0.44394821,100310.0,100300.0,0.0047256]
[1733699322854,0.44394821,100310.0,100300.0,0.0067256]
[1733699323813,0.11450521,100310.0,100300.0,0.0834256]
[1733699324022,0.2970654,100310.0,100300.0,0.0834256]
[1733699324216,0.29394821,100310.0,100300.0,0.0834256]
[1733699329555,0.179443,100310.0,100300.0,0.0834256]
[1733699330643,0.358874,100320.0,100310.0,0.0806]
[1733699332205,0.359874,100320.0,100310.0,0.1257]
[1733699332484,0.15570682,100330.0,100320.0,0.0774]
[1733699332921,0.65270721,100340.0,100320.0,0.0774]
[1733699333141,0.11762178,100330.0,100320.0,0.07757093]
[1733699333363,0.11450521,100330.0,100320.0,0.07757093]
[1733699333573,0.2989068,100330.0,100320.0,0.07757093]
[1733699333809,0.29392021,100330.0,100320.0,0.07757093]
[1733699334676,0.29492021,100330.0,100320.0,0.07757093]
[1733699336182,0.18540129,100330.0,100320.0,0.07757093]
[1733699336398,0.18540123,100330.0,100320.0,0.07757093]
[1733699336603,0.180415,100330.0,100320.0,0.07757093]
[1733699337297,0.1812786,100330.0,100320.0,0.07757093]
[1733699337519,0.18626478,100330.0,100320.0,0.07757093]
[1733699337744,0.1812786,100330.0,100320.0,0.07757093]
[1733699337980,0.0018636,100330.0,100320.0,0.30739264]
[1733699338196,0.0018636,100330.0,100320.0,0.30639593]
[1733699339052,0.0008636,100330.0,100320.0,0.30839593]
[1733699339289,0.0008636,100330.0,100320.0,0.31139593]
[1733699340374,0.0008636,100330.0,100320.0,0.43442544]
[1733699343150,0.358777,100350.0,100330.0,0.0765]
[1733699343371,0.538164,100350.0,100330.0,0.255907]
[1733699343591,0.358774,100350.0,100330.0,0.255907]
[1733699344052,0.36375943,100350.0,100340.0,0.1251]
[1733699344274,0.47826464,100350.0,100340.0,0.1251]
[1733699344496,0.48526464,100350.0,100340.0,0.1251]
[1733699344960,0.49036425,100360.0,100340.0,0.1251]
[1733699345189,0.46521464,100360.0,100340.0,0.3054865]
[1733699345416,0.3595514,100370.0,100350.0,0.08]
[1733699345642,0.47405661,100370.0,100350.0,0.08]
[1733699346134,0.179354,100360.0,100350.0,0.08]
[1733699348082,0.185354,100360.0,100350.0,0.08]
[1733699348497,0.180354,100360.0,100350.0,0.08]
[1733699348721,0.184354,100360.0,100350.0,0.08]
[1733699350253,0.1852173,100360.0,100350.0,0.08]
[1733699350656,0.0058633,100360.0,100350.0,0.08]
[1733699351550,0.0058633,100360.0,100350.0,0.38339793]
[1733699351755,0.0058633,100360.0,100350.0,0.42810151]
[1733699355900,0.32039205,100370.0,100350.0,0.42810151]
[1733699356111,0.00311523,100360.0,100350.0,0.42810151]
[1733699356335,0.32039205,100370.0,100350.0,0.42810151]
[1733699356576,0.00311523,100360.0,100350.0,0.42810151]
[1733699356781,0.32039205,100370.0,100350.0,0.42810151]
[1733699357003,0.00311523,100360.0,100350.0,0.42810151]
[1733699357223,0.32339205,100370.0,100350.0,0.42810151]
[1733699357426,0.00311523,100360.0,100350.0,0.42810151]
[1733699357633,0.32339205,100370.0,100350.0,0.42810151]
[1733699357851,0.00311525,100360.0,100350.0,0.42810151]
[1733699358082,0.32339205,100370.0,100350.0,0.42810151]
[1733699358515,0.29697444,100360.0,100350.0,0.08]
[1733699358734,0.179374,100350.0,100340.0,0.0778]
[1733699358965,0.47921187,100360.0,100340.0,0.17782951]
[1733699359192,0.00311558,100350.0,100340.0,0.17782951]
[1733699359470,0.47922587,100360.0,100340.0,0.17782951]
[1733699359703,0.00311558,100350.0,100340.0,0.17782951]
[1733699359950,0.65260921,100360.0,100340.0,0.17782951]
[1733699360184,0.00311557,100350.0,100340.0,0.17782951]
[1733699360410,0.65260921,100360.0,100340.0,0.17782951]
[1733699360635,0.00311557,100350.0,100340.0,0.17882951]
[1733699360857,0.47323621,100360.0,100340.0,0.17882951]
[1733699360858,0.65260421,100360.0,100340.0,0.17882951]
[1733699361063,0.00311556,100350.0,100340.0,0.17882951]
[1733699361279,0.65260421,100360.0,100340.0,0.17882951]
[1733699361492,0.00311557,100350.0,100340.0,0.17882951]
[1733699361714,0.3595942,100360.0,100340.0,0.17882951]
[1733699361919,0.00311555,100350.0,100340.0,0.17982598]
[1733699362130,0.5429592,100360.0,100340.0,0.17882951]
[1733699362352,0.00311554,100350.0,100340.0,0.17882951]
[1733699362555,0.65746441,100360.0,100340.0,0.17882951]
[1733699362787,0.00311554,100350.0,100340.0,0.17782951]
[1733699363025,0.65746441,100360.0,100340.0,0.17782951]
[1733699363281,0.00311555,100350.0,100340.0,0.17782951]
[1733699363494,0.65446441,100360.0,100340.0,0.17782951]
[1733699363699,0.00311555,100350.0,100340.0,0.17782951]
[1733699363907,0.179372,100350.0,100340.0,0.17782951]
[1733699364368,0.3635912,100360.0,100340.0,0.17782951]
[1733699364369,0.5429602,100360.0,100340.0,0.17782951]
[1733699364604,0.00311554,100350.0,100340.0,0.17782951]
[1733699364823,0.5429602,100360.0,100340.0,0.17782951]
[1733699365048,0.00311556,100350.0,100340.0,0.17782951]
[1733699365281,0.5389602,100360.0,100340.0,0.17782951]
[1733699365741,0.00623112,100350.0,100340.0,0.17782951]
[1733699365981,0.01121602,100350.0,100340.0,0.17882598]
[1733699366214,0.00311556,100350.0,100340.0,0.17782951]
[1733699367723,0.00311556,100350.0,100340.0,0.17672951]
[1733699368932,0.00311556,100350.0,100340.0,0.17772598]
[1733699369416,0.179345,100370.0,100350.0,0.0451]
[1733699369626,0.20301703,100380.0,100370.0,0.0451]
[1733699369627,0.0017262,100380.0,100370.0,0.0451]
[1733699369868,0.0017262,100380.0,100370.0,0.16912563]
[1733699370081,0.29552501,100400.0,100370.0,0.16912563]
[1733699370304,0.00498358,100390.0,100370.0,0.34846063]
[1733699370532,0.00498358,100380.0,100370.0,0.34846063]
[1733699370801,0.179309,100390.0,100370.0,0.34746451]
[1733699371050,0.00498325,100380.0,100370.0,0.16812951]
[1733699371246,0.35878959,100390.0,100370.0,0.24792951]
[1733699371497,0.00498341,100380.0,100370.0,0.42726551]
[1733699371699,0.35878959,100390.0,100370.0,0.43526551]
[1733699371918,0.00498341,100380.0,100370.0,0.25592951]
[1733699372144,0.35878959,100390.0,100370.0,0.25592951]
[1733699372382,0.00498341,100380.0,100370.0,0.43726351]
[1733699372819,0.35878959,100390.0,100370.0,0.25792951]
[1733699373008,0.00498332,100380.0,100370.0,0.25592951]
[1733699373252,0.4732948,100390.0,100370.0,0.23692951]
[1733699373496,0.4732948,100390.0,100370.0,0.1369]
[1733699373497,0.179318,100380.0,100370.0,0.1369]
[1733699374630,0.179318,100380.0,100370.0,0.1329]
[1733699374848,0.179318,100380.0,100370.0,0.1349]
[1733699375480,0.179318,100380.0,100370.0,0.1329]
[1733699375699,0.179318,100380.0,100370.0,0.1369]
[1733699379719,0.29382321,100380.0,100370.0,0.012]
[1733699380163,0.11450521,100380.0,100370.0,0.012]
[1733699380366,0.29382321,100380.0,100370.0,0.012]
[1733699380783,0.29382321,100380.0,100370.0,0.004]
[1733699381198,0.24382321,100380.0,100370.0,0.008]
[1733699381644,0.19382321,100380.0,100370.0,0.008]
[1733699381818,0.19382321,100380.0,100370.0,0.004]
[1733699382217,0.19382321,100380.0,100370.0,0.006]
[1733699382432,0.14382321,100380.0,100370.0,0.006]
[1733699382673,0.35965279,100390.0,100370.0,0.004]
[1733699382873,0.30192255,100380.0,100370.0,0.004]
[1733699383090,0.24382321,100380.0,100370.0,0.006]
[1733699383518,0.11450521,100380.0,100370.0,0.006]
[1733699383703,0.179318,100380.0,100370.0,0.004]
[1733699384145,0.57168375,100390.0,100370.0,0.004]
[1733699384360,0.18743142,100380.0,100360.0,0.077]
[1733699384564,0.18743542,100370.0,100360.0,0.077]
[1733699384765,0.358664,100380.0,100360.0,0.077]
[1733699384972,0.18743537,100370.0,100360.0,0.077]
[1733699385187,0.179336,100370.0,100360.0,0.077]
[1733699385834,0.179336,100370.0,100360.0,0.089]
[1733699386570,0.179336,100370.0,100360.0,0.012]
[1733699386996,0.65250221,100380.0,100360.0,0.012]
[1733699387207,0.00809978,100370.0,100360.0,0.012]
[1733699387420,0.179336,100370.0,100360.0,0.004]
[1733699387824,0.65250221,100380.0,100360.0,0.004]
[1733699388036,0.179354,100360.0,100350.0,0.1274264]
[1733699388247,0.179354,100360.0,100350.0,0.22745591]
[1733699388456,0.36368449,100370.0,100350.0,0.22745591]
[1733699388676,0.18246931,100360.0,100350.0,0.22745591]
[1733699388906,0.179354,100360.0,100350.0,0.1274264]
[1733699389332,0.179354,100360.0,100350.0,0.1314264]
[1733699389779,0.179354,100360.0,100350.0,0.1334264]
[1733699392519,0.179354,100360.0,100350.0,0.0837264]
[1733699392738,0.18433871,100360.0,100350.0,0.0837264]
[1733699397396,0.29385921,100360.0,100350.0,0.0077264]
[1733699397660,0.37105921,100360.0,100350.0,0.0077264]
[1733699397887,0.61426756,100360.0,100350.0,0.0077264]
[1733699398110,0.52105921,100360.0,100350.0,0.0037264]
[1733699398335,0.52105921,100360.0,100350.0,0.0017264]
[1733699398562,0.34170521,100360.0,100350.0,0.0017264]
[1733699399003,0.62508872,100360.0,100350.0,0.0017264]
[1733699399229,0.71450657,100360.0,100350.0,0.0017264]
[1733699399890,0.71451207,100360.0,100350.0,0.0017264]
[1733699400333,0.71551207,100360.0,100350.0,0.0017264]
[1733699402351,0.62608872,100360.0,100350.0,0.0017264]
[1733699403024,1.17368872,100360.0,100350.0,0.0017264]
[1733699404578,1.11622151,100360.0,100350.0,0.0017264]
[1733699405932,0.56862151,100360.0,100350.0,0.0017264]
[1733699413449,0.60438862,100360.0,100350.0,0.0017264]
[1733699416109,0.52925246,100360.0,100350.0,0.0017264]
[1733699418593,0.50951967,100360.0,100350.0,0.0017264]
[1733699419458,0.58465583,100360.0,100350.0,0.0017264]
[1733699419888,0.58551903,100360.0,100350.0,0.0017264]
[1733699420556,0.3352172,100360.0,100350.0,0.0802264]
[1733699420783,0.0058632,100360.0,100350.0,0.40602791]
[1733699420997,0.38253638,100370.0,100360.0,0.0785]
[1733699420998,0.33839958,100370.0,100360.0,0.0785]
[1733699421440,0.25446816,100380.0,100370.0,0.122]
[1733699421441,0.179331,100380.0,100370.0,0.122]
[1733699421664,0.358659,100380.0,100370.0,0.122]
[1733699422795,0.508659,100380.0,100370.0,0.122]
[1733699423012,0.179328,100380.0,100370.0,0.122]
[1733699423486,0.01989591,100390.0,100380.0,0.0784]
[1733699423719,0.3603038,100400.0,100390.0,0.0784]
[1733699423927,0.358586,100400.0,100390.0,0.0784]
[1733699424139,0.358586,100400.0,100390.0,0.07857159]
[1733699424867,0.508586,100400.0,100390.0,0.07857159]
[1733699426222,0.509586,100400.0,100390.0,0.07857159]
[1733699426439,0.51756913,100400.0,100390.0,0.07957159]
[1733699427766,0.53747303,100400.0,100390.0,0.07957159]
[1733699427985,0.5324899,100400.0,100390.0,0.07957159]
[1733699428251,0.5314899,100400.0,100390.0,0.07957159]
[1733699428497,0.5324899,100400.0,100390.0,0.07957159]
[1733699428913,0.5314899,100400.0,100390.0,0.07957159]
[1733699429355,0.5314899,100400.0,100390.0,0.08057159]
[1733699429577,0.5284899,100400.0,100390.0,0.07957159]
[1733699431585,0.5293531,100400.0,100390.0,0.07957159]
[1733699432066,0.72436114,100400.0,100390.0,0.00117159]
[1733699432305,0.87439065,100400.0,100390.0,0.00117159]
[1733699432970,1.37302544,100400.0,100390.0,0.00017159]
[1733699433416,1.29242544,100400.0,100390.0,0.00017159]
[1733699433649,1.29542544,100400.0,100390.0,0.00117159]
[1733699434553,1.26642544,100400.0,100390.0,0.00117159]
[1733699435016,1.26042544,100400.0,100390.0,0.00117159]
[1733699435249,1.26242544,100400.0,100390.0,0.00117159]
[1733699436154,1.29741944,100400.0,100390.0,0.00117159]
[1733699436368,1.31769665,100400.0,100390.0,0.00117159]
[1733699436800,0.88298189,100400.0,100390.0,0.00117159]
[1733699437016,0.70369189,100400.0,100390.0,0.00117159]
[1733699437228,0.88298189,100400.0,100390.0,0.00117159]
[1733699437906,0.87798189,100400.0,100390.0,0.00017159]
[1733699438125,1.03198189,100400.0,100390.0,0.07887159]
[1733699438354,0.98198189,100400.0,100390.0,0.07887159]
[1733699438598,0.98098189,100400.0,100390.0,0.07887159]
[1733699438821,0.98198189,100400.0,100390.0,0.07887159]
[1733699439050,0.51258,100400.0,100390.0,0.07887159]
[1733699439284,0.50858,100400.0,100390.0,0.07887159]
[1733699439505,0.51356299,100400.0,100390.0,0.07887159]
[1733699440430,0.62797103,100400.0,100390.0,0.07887159]
[1733699440642,0.62797103,100400.0,100390.0,0.07987159]
[1733699440906,0.62298804,100400.0,100390.0,0.07987159]
[1733699441991,0.50858,100400.0,100390.0,0.07987159]
[1733699442205,0.51356305,100400.0,100390.0,0.07987159]
[1733699443340,0.62797109,100400.0,100390.0,0.08159739]
[1733699443565,0.62385094,100400.0,100390.0,0.00289739]
[1733699443833,0.5094429,100400.0,100390.0,0.00289739]
[1733699444070,0.51442635,100400.0,100390.0,0.00289739]
[1733699444513,0.5244429,100400.0,100390.0,0.00289739]
[1733699447913,0.73888045,100400.0,100390.0,0.00289739]
[1733699448152,1.33988234,100400.0,100390.0,3.9e-07]
[1733699448379,1.33988234,100400.0,100370.0,0.0774]
[1733699448380,0.179318,100380.0,100370.0,0.0774]
[1733699448641,0.29372604,100380.0,100370.0,0.0774]
[1733699449530,0.179318,100380.0,100370.0,0.0774]
[1733699455246,0.179318,100380.0,100370.0,0.0791258]
[1733699455460,0.44372604,100380.0,100370.0,0.0791258]
[1733699455678,0.44372604,100380.0,100370.0,0.0017258]
[1733699456572,0.46401521,100380.0,100370.0,0.0017258]
[1733699457258,0.46701521,100380.0,100370.0,0.0017258]
[1733699457470,0.46801521,100380.0,100370.0,0.0017258]
[1733699457931,0.35360717,100380.0,100370.0,0.0017258]
[1733699458146,0.004,100380.0,100370.0,0.0816258]
[1733699458363,0.183318,100380.0,100370.0,0.0816258]
[1733699458582,0.8482945,100390.0,100370.0,0.0816258]
[1733699458806,0.18741689,100380.0,100370.0,0.0816258]
[1733699459024,0.179318,100380.0,100370.0,0.1289258]
[1733699460316,0.358624,100390.0,100380.0,0.0799]
[1733699460317,0.37814087,100390.0,100380.0,0.0799]
[1733699460530,0.358618,100390.0,100380.0,0.0799]
[1733699460750,0.001,100390.0,100380.0,0.127]
[1733699460966,0.18031,100390.0,100380.0,0.127]
[1733699461177,0.17931,100390.0,100380.0,0.127]
[1733699461394,0.17931,100390.0,100380.0,0.128]
[1733699461892,0.17931,100390.0,100380.0,0.127]
[1733699462375,0.17931,100390.0,100380.0,0.13]
[1733699462621,0.34531937,100400.0,100390.0,0.0785]
[1733699462868,0.19531637,100400.0,100390.0,0.17852951]
[1733699463110,0.32461137,100400.0,100390.0,0.17852951]
[1733699463797,0.32461137,100400.0,100390.0,0.0785]
[1733699464085,0.47461137,100400.0,100390.0,0.0805]
[1733699467070,0.47461137,100400.0,100390.0,0.0822258]
[1733699467290,0.47547427,100400.0,100390.0,0.0822258]
[1733699469599,0.58988231,100400.0,100390.0,0.0037258]
[1733699469708,0.81305547,100400.0,100390.0,0.0037258]
[1733699470171,0.991594,100400.0,100390.0,0.0037258]
[1733699470642,1.09162351,100400.0,100390.0,0.0037258]
[1733699470891,0.179318,100380.0,100370.0,0.0017258]
[1733699471108,0.329318,100380.0,100370.0,0.0017258]
[1733699471322,0.3735745,100380.0,100370.0,0.0017258]
[1733699471964,0.5528925,100380.0,100370.0,0.0017258]
[1733699472595,0.4187478,100380.0,100370.0,0.0017258]
[1733699473288,0.5528925,100380.0,100370.0,0.0017258]
[1733699473972,0.329318,100380.0,100370.0,0.0017258]
[1733699474648,0.179318,100380.0,100370.0,0.0815258]
[1733699474873,0.179318,100380.0,100370.0,0.1278258]
[1733699475100,0.358624,100390.0,100370.0,0.1278258]
[1733699475297,0.18741674,100380.0,100370.0,0.1278258]
[1733699475514,0.179318,100380.0,100370.0,0.1278258]
[1733699475764,0.18430184,100380.0,100370.0,0.1278258]
[1733699476425,0.18430183,100380.0,100370.0,0.1278258]
[1733699478277,0.179318,100380.0,100370.0,0.1278258]
[1733699478739,0.18430183,100380.0,100370.0,0.1278258]
[1733699479450,0.179318,100380.0,100370.0,0.1278258]
[1733699481387,0.179318,100380.0,100370.0,0.0017258]
[1733699481600,0.44372604,100380.0,100370.0,0.0017258]
[1733699481813,0.35383784,100380.0,100370.0,0.0017258]
[1733699482045,0.48798254,100380.0,100370.0,0.0017258]
[1733699482343,0.94586858,100380.0,100370.0,0.0017258]
[1733699483027,0.99586858,100380.0,100370.0,0.0017258]
[1733699483250,0.99613511,100380.0,100370.0,0.0017258]
[1733699483485,1.13026163,100380.0,100370.0,0.0017258]
[1733699483697,1.21966938,100380.0,100370.0,0.0017258]
[1733699483942,1.13026163,100380.0,100370.0,0.0017258]
[1733699484154,1.21966989,100380.0,100370.0,0.0017258]
[1733699485083,1.13026163,100380.0,100370.0,0.0017258]
[1733699485768,1.21965301,100380.0,100370.0,0.0017258]
[1733699487146,1.6890549,100380.0,100370.0,0.0017258]
[1733699487814,1.70886662,100380.0,100370.0,0.0017258]
[1733699488265,1.92309,100380.0,100370.0,0.0017258]
[1733699488487,1.7750721,100380.0,100370.0,8e-07]
[1733699488744,1.30567021,100380.0,100370.0,8e-07]
[1733699488960,1.11912835,100380.0,100370.0,8e-07]
[1733699489183,1.14912835,100380.0,100370.0,8e-07]
[1733699489407,1.10433851,100380.0,100370.0,8e-07]
[1733699489637,1.37254692,100380.0,100370.0,8e-07]
[1733699489856,1.14912835,100380.0,100370.0,8e-07]
[1733699491219,1.15431663,100380.0,100370.0,8e-07]
[1733699491454,1.37769439,100380.0,100370.0,8e-07]
[1733699491889,1.15431663,100380.0,100370.0,8e-07]
[1733699492348,1.288078,100380.0,100370.0,8e-07]
[1733699492620,0.99500193,100380.0,100370.0,8e-07]
[1733699492838,1.26323215,100380.0,100370.0,8e-07]
[1733699493273,1.37764019,100380.0,100370.0,8e-07]
[1733699493942,1.15431663,100380.0,100370.0,8e-07]
[1733699494731,1.37757712,100380.0,100370.0,8e-07]
[1733699495861,1.26316908,100380.0,100370.0,8e-07]
[1733699496082,1.37757712,100380.0,100370.0,8e-07]
[1733699496742,0.99491604,100380.0,100370.0,8e-07]
[1733699496961,0.94491604,100380.0,100370.0,8e-07]
[1733699497200,1.27328684,100380.0,100370.0,8e-07]
[1733699497624,1.38769488,100380.0,100370.0,8e-07]
[1733699497843,1.20913942,100380.0,100370.0,8e-07]
[1733699498057,1.18213942,100380.0,100370.0,8e-07]
[1733699498266,1.22713197,100380.0,100370.0,8e-07]
[1733699498607,1.22713197,100380.0,100350.0,0.0017264]
[1733699498608,0.229354,100360.0,100350.0,0.0017264]
[1733699498833,0.59379155,100360.0,100350.0,0.0017264]
[1733699499934,0.59379155,100360.0,100350.0,0.00189787]
[1733699500201,0.59379155,100360.0,100350.0,0.00589787]
[1733699500390,0.59379155,100360.0,100350.0,0.00789787]
[1733699502133,1.14139155,100360.0,100350.0,0.00789787]
[1733699502686,1.18231982,100360.0,100350.0,0.00789787]
[1733699505346,1.18231982,100360.0,100350.0,8.7e-07]
[1733699505584,0.92216468,100360.0,100350.0,8.7e-07]
[1733699505809,1.23432699,100360.0,100350.0,8.7e-07]
[1733699506245,0.179407,100330.0,100320.0,0.1305266]
[1733699506463,0.179407,100330.0,100320.0,0.13069753]
[1733699506464,0.44381504,100330.0,100320.0,0.13069753]
[1733699508828,0.44381504,100330.0,100320.0,0.13669753]
[1733699509051,0.44481504,100330.0,100320.0,0.14569753]
[1733699515415,0.46998341,100330.0,100320.0,0.14569753]
[1733699516238,0.46898341,100330.0,100320.0,0.13669753]
[1733699516827,0.46898341,100330.0,100320.0,0.13069753]
[1733699517050,1.16661292,100330.0,100320.0,5.3e-07]
[1733699517263,1.33620931,100330.0,100320.0,5.3e-07]
[1733699517499,0.329443,100310.0,100300.0,0.0803256]
[1733699517710,0.54388055,100310.0,100300.0,0.0803256]
[1733699517926,0.64369589,100310.0,100300.0,0.0803256]
[1733699518355,0.54388055,100310.0,100300.0,0.0803256]
[1733699518991,0.56635641,100310.0,100300.0,0.0883256]
[1733699519197,0.56635641,100310.0,100300.0,0.0903256]
[1733699519411,0.56635641,100310.0,100300.0,0.0823256]
[1733699519621,0.56635641,100310.0,100300.0,0.0863256]
[1733699521323,1.11395641,100310.0,100300.0,0.0077256]
[1733699522203,1.13346159,100310.0,100300.0,0.0057256]
[1733699522438,1.13346159,100310.0,100300.0,0.0017256]
[1733699524957,1.23346159,100310.0,100300.0,6e-07]
[1733699525219,1.33327693,100310.0,100300.0,6e-07]
[1733699525441,1.23346159,100310.0,100300.0,6e-07]
[1733699526318,1.23946159,100310.0,100300.0,6e-07]
[1733699526521,1.12505355,100310.0,100300.0,6e-07]
[1733699526724,0.329479,100290.0,100280.0,0.129425]
[1733699526945,0.42950851,100290.0,100280.0,0.129425]
[1733699528016,0.42950851,100290.0,100280.0,0.12999757]
[1733699529017,0.329479,100290.0,100280.0,0.12999757]
[1733699529250,0.15,100290.0,100280.0,0.12999757]
[1733699529477,0.329479,100290.0,100280.0,0.12999757]
[1733699533895,0.358944,100300.0,100280.0,0.25302708]
[1733699534107,0.358944,100300.0,100290.0,0.1264]
[1733699534542,0.40301151,100310.0,100290.0,0.1264]
[1733699534760,0.22355351,100310.0,100300.0,0.078]
[1733699535177,0.35404833,100310.0,100300.0,0.1252]
[1733699535436,0.20404833,100310.0,100300.0,0.1252]
[1733699535631,0.179443,100310.0,100300.0,0.1252]
[1733699536078,0.168443,100310.0,100300.0,0.1252]
[1733699536501,0.28485104,100310.0,100300.0,0.1252]
[1733699536738,0.43885104,100310.0,100300.0,0.1252]
[1733699536948,0.43685104,100310.0,100300.0,0.1252]
[1733699537168,0.43885104,100310.0,100300.0,0.1252]
[1733699538107,0.43885104,100310.0,100300.0,0.078]
[1733699539378,0.324443,100310.0,100300.0,0.078]
[1733699542175,0.329461,100300.0,100290.0,0.1255]
[1733699542383,0.44386904,100300.0,100290.0,0.1255]
[1733699543254,0.329461,100300.0,100290.0,0.1255]
[1733699545211,0.347901,100310.0,100290.0,0.1255]
[1733699545212,0.347901,100310.0,100290.0,0.24852951]
[1733699545339,0.347899,100310.0,100300.0,0.1304]
[1733699545569,0.46230704,100310.0,100300.0,0.1304]
[1733699546259,0.46430704,100310.0,100300.0,0.1304]
[1733699546434,0.61830704,100310.0,100300.0,0.1304]
[1733699546653,0.61430704,100310.0,100300.0,0.1304]